[Event "7th Iberoamerican-ch 2019"]
[Site "Linares"]
[Date "2019.08.13"]
[Round "4.9"]
[White "Zambrana, Oswaldo"]
[Black "Cori, Jorge"]
[Result "1/2-1/2"]
[ECO "B41"]
[WhiteElo "2440"]
[BlackElo "2686"]
[Annotator "ChessBase"]
[PlyCount "103"]
[EventDate "2019.08.10"]
[EventType "swiss"]
[EventCountry "ESP"]
[SourceTitle "playchess.com"]
[Source "ChessBase"]
[SourceQuality "1"]
[TimeControl "5400+30"]

1. e4 {[%emt 0:00:35]} c5 {[%emt 0:00:00]} 2. Nf3 {[%emt 0:00:00]} e6 {[%emt 0:00:00]} 3. d4 {[%emt 0:00:00]} cxd4 {[%emt 0:00:00]} 4. Nxd4 {[%emt 0:00:11]} a6 {[%emt 0:00:00]} 5. c4 {[%emt 0:00:37]} Nf6 {[%emt 0:00:00]} 6. Nc3 {[%emt 0:00:06]} Qc7 {[%emt 0:00:00]} 7. a3 {[%emt 0:00:12]} b6 {[%emt 0:00:00]} 8. Be3 {[%emt 0:00:20]} Bb7 {[%emt 0:00:00]} 9. f3 {[%emt 0:00:09]} d6 {[%emt 0:00:33]} 10. Rc1 {[%emt 0:00:36]} Nbd7 {[%emt 0:00:11]} 11. Be2 {[%emt 0:00:26]} Be7 {[%emt 0:00:02]} 12. O-O {[%emt 0:00:38]} O-O {[%emt 0:00:47]} 13. b4 {[%emt 0:00:42]} Rac8 {[%emt 0:00:21]} 14. Qd2 {[%emt 0:00:10]} Qb8 {[%emt 0:00:32]} 15. Kh1 {[%emt 0:00:47]} Bd8 {[%emt 0:01:07]} 16. Bg1 {[%emt 0:00:16]} Bc7 {[%emt 0:00:05]} 17. Rc2 {[%emt 0:00:20]} Rfe8 {[%emt 0:02:37]} 18. Rb1 {[%emt 0:03:47]} Qa8 {[%emt 0:18:58]} 19. a4 {[%emt 0:13:27]} Red8 {[%emt 0:10:05]} 20. Qc1 {[%emt 0:05:21]} h6 {[%emt 0:00:50]} 21. Nb3 {[%emt 0:04:16]} d5 {[%emt 0:13:48]} 22. cxd5 {[%emt 0:01:50]} exd5 {[%emt 0:00:19]} 23. Nxd5 {[%emt 0:02:16]} Nxd5 {[%emt 0:00:07]} 24. exd5 {[%emt 0:00:19]} Bd6 {[%emt 0:03:15]} 25. Nd4 {[%emt 0:00:41]} Bxd5 {[%emt 0:02:25]} 26. Bc4 {[%emt 0:22:16]} Bxc4 {[%emt 0:03:36]} 27. Rxc4 {[%emt 0:00:38]} Ne5 {[%emt 0:00:23]} 28. Rxc8 {[%emt 0:00:26]} Rxc8 {[%emt 0:00:05]} 29. Qd1 {[%emt 0:01:47]} Bf8 {[%emt 0:11:28]} 30. Qe2 {[%emt 0:01:45]} Nc4 {[%emt 0:01:05]} 31. Rc1 {[%emt 0:02:00]} Nd6 {[%emt 0:05:10]} 32. Rxc8 {[%emt 0:02:27]} Qxc8 {[%emt 0:00:04]} 33. b5 {[%emt 0:03:37]} axb5 {[%emt 0:01:59]} 34. Nxb5 {[%emt 0:00:56]} Nc4 {[%emt 0:02:52]} 35. g3 {[%emt 0:03:15]} Qa8 {[%emt 0:06:21]} 36. Nc3 {[%emt 0:03:40]} Bb4 {[%emt 0:00:10]} 37. Ne4 {[%emt 0:00:51]} Qc6 {[%emt 0:05:41]} 38. Kg2 {[%emt 0:01:17]} Ba5 {[%emt 0:00:04]} 39. Nc5 {[%emt 0:04:35]} Nd2 {[%emt 0:07:02]} 40. Ne4 {[%emt 0:00:09]} Nc4 {[%emt 0:03:09]} 41. Nc5 {[%emt 0:00:06]} Nd6 {[%emt 0:02:00]} 42. Ne4 {[%emt 0:00:04]} Nf5 {[%emt 0:00:34]} 43. Qb5 {[%emt 0:01:29]} Qxb5 {[%emt 0:00:04]} 44. axb5 {[%emt 0:00:08]} Kf8 {[%emt 0:00:21]} 45. g4 {[%emt 0:00:31]} Ne7 {[%emt 0:02:33]} 46. Nd6 {[%emt 0:03:31]} Nd5 {[%emt 0:00:10]} 47. Nc4 {[%emt 0:00:15]} Ke8 {[%emt 0:00:38]} 48. Bd4 {[%emt 0:01:29]} f6 {[%emt 0:00:11]} 49. Kg3 {[%emt 0:00:25]} Be1+ {[%emt 0:00:16]} 50. Kg2 {[%emt 0:02:05]} Nc7 {[%emt 0:01:34]} 51. Nd6+ {[%emt 0:01:09]} Ke7 {[%emt 0:00:12]} 52. Nf5+ {[%emt 0:00:54]} 1/2-1/2

[Event "7th Iberoamerican-ch 2019"]
[Site "Linares"]
[Date "2019.08.13"]
[Round "4.10"]
[White "Cori T., Deysi"]
[Black "Vallejo Pons, Francisco"]
[Result "0-1"]
[ECO "A57"]
[WhiteElo "2405"]
[BlackElo "2687"]
[Annotator "ChessBase"]
[PlyCount "64"]
[EventDate "2019.08.10"]
[EventType "swiss"]
[EventCountry "ESP"]
[SourceTitle "playchess.com"]
[Source "ChessBase"]
[SourceQuality "1"]
[TimeControl "5400+30"]

1. d4 {[%emt 0:00:00]} Nf6 {[%emt 0:00:00]} 2. c4 {[%emt 0:00:00]} c5 {[%emt 0:00:31]} 3. d5 {[%emt 0:00:00]} b5 {[%emt 0:02:03]} 4. cxb5 {[%emt 0:00:00]} a6 {[%emt 0:00:02]} 5. b6 {[%emt 0:00:08]} d6 {[%emt 0:02:25]} 6. Nc3 {[%emt 0:11:33]} Nbd7 {[%emt 0:00:47]} 7. a4 {[%emt 0:01:23]} Qxb6 {[%emt 0:03:06]} 8. Nf3 {[%emt 0:02:30]} g6 {[%emt 0:01:58]} 9. a5 {[%emt 0:02:14]} Qb7 {[%emt 0:15:16]} 10. e4 {[%emt 0:08:19]} Bg7 {[%emt 0:00:33]} 11. Be2 {[%emt 0:08:00]} O-O {[%emt 0:01:17]} 12. Nd2 {[%emt 0:02:10]} Ne8 {[%emt 0:03:13]} 13. Ra3 {[%emt 0:04:54]} Nc7 {[%emt 0:06:00]} 14. h4 {[%emt 0:14:52]} Nb5 {[%emt 0:10:42]} 15. Nxb5 {[%emt 0:02:38]} axb5 {[%emt 0:00:03]} 16. h5 {[%emt 0:00:24]} c4 {[%emt 0:08:27]} 17. b4 {[%emt 0:09:34]} cxb3 {[%emt 0:03:10]} 18. Nxb3 {[%emt 0:00:02]} b4 {[%emt 0:03:35]} 19. Ra2 {[%emt 0:00:09]} Bc3+ {[%emt 0:01:32]} 20. Kf1 {[%emt 0:04:30]} Nf6 {[%emt 0:01:15]} 21. Qd3 {[%emt 0:01:56]} e6 {[%emt 0:05:47]} 22. Bd2 {[%emt 0:21:35]} exd5 {[%emt 0:06:32]} 23. a6 {[%emt 0:02:05]} Qb6 {[%emt 0:05:07]} 24. exd5 {[%emt 0:02:24]} Bf5 {[%emt 0:00:38]} 25. Qe3 {[%emt 0:00:27]} Qxe3 {[%emt 0:02:40]} 26. fxe3 {[%emt 0:00:07]} Nxd5 {[%emt 0:00:37]} 27. Ra5 {[%emt 0:00:19]} Nf6 {[%emt 0:02:42]} 28. Bxc3 {[%emt 0:00:34]} bxc3 {[%emt 0:00:24]} 29. Nd4 {[%emt 0:00:04]} Ne4 {[%emt 0:02:37]} 30. Rh4 {[%emt 0:01:08]} Rfc8 {[%emt 0:03:39]} 31. Bf3 {[%emt 0:00:43]} Nd2+ {[%emt 0:01:24]} 32. Ke2 {[%emt 0:00:13]} Nxf3 {[%emt 0:01:19]} 0-1

[Event "7th Iberoamerican-ch 2019"]
[Site "Linares"]
[Date "2019.08.13"]
[Round "4.11"]
[White "Salgado Lopez, Ivan"]
[Black "Valenzuela Gomez, Fernando"]
[Result "*"]
[WhiteElo "2596"]
[BlackElo "2394"]
[Annotator "ChessBase"]
[PlyCount "30"]
[EventDate "2019.08.10"]
[EventType "swiss"]
[EventCountry "ESP"]
[SourceTitle "playchess.com"]
[Source "ChessBase"]
[SourceQuality "1"]
[TimeControl "5400+30"]

1. d4 {[%emt 0:00:00]} g6 {[%emt 0:03:09]} 2. e4 {[%emt 0:01:47]} Bg7 {[%emt 0:00:09]} 3. c4 {[%emt 0:01:56]} e6 {[%emt 0:01:42]} 4. Nc3 {[%emt 0:02:22]} Ne7 {[%emt 0:00:12]} 5. Bg5 {[%emt 0:01:14]} h6 {[%emt 0:01:40]} 6. Bh4 {[%emt 0:00:52]} d5 {[%emt 0:02:09]} 7. cxd5 {[%emt 0:07:40]} exd5 {[%emt 0:06:41]} 8. exd5 {[%emt 0:00:34]} g5 {[%emt 0:05:21]} 9. Bg3 {[%emt 0:00:06]} Nxd5 {[%emt 0:00:40]} 10. Bc4 {[%emt 0:00:13]} Nxc3 {[%emt 0:04:27]} 11. bxc3 {[%emt 0:00:32]} O-O {[%emt 0:00:30]} 12. h4 {[%emt 0:06:44]} c5 {[%emt 0:22:43]} 13. hxg5 {[%emt 0:02:23]} cxd4 {[%emt 0:00:27]} 14. gxh6 {[%emt 0:02:02]} Bf6 {[%emt 0:00:22]} 15. Qh5 {[%emt 0:08:46]} Kh8 {[%emt 0:05:15]} *

[Event "7th Iberoamerican-ch 2019"]
[Site "Linares"]
[Date "2019.08.13"]
[Round "4.13"]
[White "Fier, Alexandr"]
[Black "Mieles Palau, Daniel"]
[Result "1-0"]
[ECO "A13"]
[WhiteElo "2547"]
[BlackElo "2359"]
[Annotator "ChessBase"]
[PlyCount "91"]
[EventDate "2019.08.10"]
[EventType "swiss"]
[EventCountry "ESP"]
[SourceTitle "playchess.com"]
[Source "ChessBase"]
[SourceQuality "1"]
[TimeControl "5400+30"]

1. c4 {[%emt 0:00:00]} e6 {[%emt 0:00:44]} 2. Nf3 {[%emt 0:00:00]} d5 {[%emt 0:00:15]} 3. g3 {[%emt 0:00:00]} dxc4 {[%emt 0:00:26]} 4. Qa4+ {[%emt 0:00:00]} c6 {[%emt 0:02:08]} 5. Qxc4 {[%emt 0:00:00]} b5 {[%emt 0:00:27]} 6. Qc2 {[%emt 0:00:01]} Bb7 {[%emt 0:01:22]} 7. Bg2 {[%emt 0:00:07]} Nd7 {[%emt 0:01:39]} 8. O-O {[%emt 0:00:07]} Rc8 {[%emt 0:05:08]} 9. a4 {[%emt 0:00:09]} a6 {[%emt 0:01:00]} 10. Nc3 {[%emt 0:00:07]} Ngf6 {[%emt 0:00:41]} 11. d3 {[%emt 0:00:06]} Be7 {[%emt 0:02:11]} 12. e4 {[%emt 0:00:05]} O-O {[%emt 0:00:48]} 13. h3 {[%emt 0:00:04]} b4 {[%emt 0:15:38]} 14. Nb1 {[%emt 0:00:13]} b3 {[%emt 0:01:13]} 15. Qe2 {[%emt 0:00:26]} a5 {[%emt 0:00:26]} 16. d4 {[%emt 0:06:21]} c5 {[%emt 0:00:51]} 17. Nc3 {[%emt 0:00:14]} Qb6 {[%emt 0:04:26]} 18. Rd1 {[%emt 0:01:39]} Rfe8 {[%emt 0:11:06]} 19. dxc5 {[%emt 0:06:49]} Nxc5 {[%emt 0:00:47]} 20. Nd4 {[%emt 0:08:43]} Ba6 {[%emt 0:02:06]} 21. Qe3 {[%emt 0:04:09]} Nd3 {[%emt 0:11:12]} 22. Rxd3 {[%emt 0:03:40]} Bxd3 {[%emt 0:00:09]} 23. Qxd3 {[%emt 0:00:02]} Red8 {[%emt 0:02:14]} 24. Be3 {[%emt 0:01:00]} Bc5 {[%emt 0:00:24]} 25. Qb5 {[%emt 0:00:22]} Rxd4 {[%emt 0:01:20]} 26. e5 {[%emt 0:05:32]} Nd5 {[%emt 0:04:51]} 27. Bxd5 {[%emt 0:02:45]} exd5 {[%emt 0:00:22]} 28. Bxd4 {[%emt 0:00:04]} Bxd4 {[%emt 0:02:31]} 29. Qxb6 {[%emt 0:00:05]} Bxb6 {[%emt 0:00:03]} 30. Nxd5 {[%emt 0:00:04]} Bc5 {[%emt 0:09:44]} 31. Kg2 {[%emt 0:01:34]} Bf8 {[%emt 0:01:03]} 32. Ne3 {[%emt 0:01:40]} Rb8 {[%emt 0:06:28]} 33. Nc4 {[%emt 0:01:27]} Bb4 {[%emt 0:00:38]} 34. Rd1 {[%emt 0:00:06]} Rc8 {[%emt 0:01:34]} 35. Nb6 {[%emt 0:00:06]} Re8 {[%emt 0:01:19]} 36. Rd3 {[%emt 0:00:39]} g5 {[%emt 0:00:37]} 37. Nd7 {[%emt 0:01:28]} Rc8 {[%emt 0:01:04]} 38. Rxb3 {[%emt 0:04:34]} Rc2 {[%emt 0:00:05]} 39. Rd3 {[%emt 0:00:02]} Rxb2 {[%emt 0:01:15]} 40. Nf6+ {[%emt 0:00:04]} Kg7 {[%emt 0:02:20]} 41. Rd8 {[%emt 0:00:05]} Bf8 {[%emt 0:01:09]} 42. Ra8 {[%emt 0:00:32]} Rc2 {[%emt 0:00:12]} 43. Nh5+ {[%emt 0:00:17]} Kg8 {[%emt 0:01:01]} 44. Rxa5 {[%emt 0:00:05]} h6 {[%emt 0:00:24]} 45. Ra8 {[%emt 0:00:04]} Rc5 {[%emt 0:00:14]} 46. a5 {[%emt 0:00:37]} 1-0

[Event "7th Iberoamerican-ch 2019"]
[Site "Linares"]
[Date "2019.08.13"]
[Round "4.14"]
[White "Krysa, Leandro"]
[Black "Matnadze, Ana"]
[Result "1-0"]
[ECO "A18"]
[WhiteElo "2517"]
[BlackElo "2363"]
[Annotator "ChessBase"]
[PlyCount "95"]
[EventDate "2019.08.10"]
[EventType "swiss"]
[EventCountry "ESP"]
[SourceTitle "playchess.com"]
[Source "ChessBase"]
[SourceQuality "1"]
[TimeControl "5400+30"]

1. c4 {[%emt 0:00:00]} Nf6 {[%emt 0:00:00]} 2. Nc3 {[%emt 0:00:00]} e6 {[%emt 0:00:07]} 3. e4 {[%emt 0:00:06]} d6 {[%emt 0:00:09]} 4. d4 {[%emt 0:00:42]} g6 {[%emt 0:00:39]} 5. Be2 {[%emt 0:06:37]} Bg7 {[%emt 0:00:12]} 6. Bg5 {[%emt 0:00:15]} h6 {[%emt 0:00:12]} 7. Be3 {[%emt 0:00:29]} b6 {[%emt 0:02:07]} 8. Qd2 {[%emt 0:03:01]} Bb7 {[%emt 0:00:09]} 9. f3 {[%emt 0:01:15]} Nbd7 {[%emt 0:02:21]} 10. Nh3 {[%emt 0:02:53]} e5 {[%emt 0:03:02]} 11. d5 {[%emt 0:01:01]} a5 {[%emt 0:00:24]} 12. Bd1 {[%emt 0:07:37]} Ba6 {[%emt 0:02:32]} 13. b3 {[%emt 0:01:04]} Nh5 {[%emt 0:01:31]} 14. O-O {[%emt 0:02:14]} Nc5 {[%emt 0:04:20]} 15. Rb1 {[%emt 0:07:22]} Bc8 {[%emt 0:04:39]} 16. Nf2 {[%emt 0:00:37]} f5 {[%emt 0:00:39]} 17. exf5 {[%emt 0:01:53]} Bxf5 {[%emt 0:01:15]} 18. Bc2 {[%emt 0:01:08]} Nf6 {[%emt 0:05:09]} 19. a3 {[%emt 0:01:41]} Kf7 {[%emt 0:04:58]} 20. b4 {[%emt 0:02:44]} Bxc2 {[%emt 0:00:52]} 21. Qxc2 {[%emt 0:00:48]} Ncd7 {[%emt 0:00:31]} 22. Nfe4 {[%emt 0:16:46]} axb4 {[%emt 0:04:30]} 23. axb4 {[%emt 0:00:05]} Kg8 {[%emt 0:05:24]} 24. c5 {[%emt 0:03:53]} bxc5 {[%emt 0:07:16]} 25. bxc5 {[%emt 0:00:07]} dxc5 {[%emt 0:00:46]} 26. Bxc5 {[%emt 0:10:26]} Kh7 {[%emt 0:07:26]} 27. Rfd1 {[%emt 0:01:57]} Nh5 {[%emt 0:02:35]} 28. Be3 {[%emt 0:01:30]} Rf8 {[%emt 0:03:38]} 29. Nb5 {[%emt 0:02:10]} Rc8 {[%emt 0:03:50]} 30. Na7 {[%emt 0:00:22]} Ra8 {[%emt 0:01:50]} 31. Rb7 {[%emt 0:00:10]} Ndf6 {[%emt 0:01:49]} 32. Nxf6+ {[%emt 0:02:14]} Qxf6 {[%emt 0:00:30]} 33. Qxc7 {[%emt 0:02:32]} Nf4 {[%emt 0:01:21]} 34. Qe7 {[%emt 0:01:32]} Ne2+ {[%emt 0:03:23]} 35. Kf1 {[%emt 0:04:06]} Nc3 {[%emt 0:07:18]} 36. Rd3 {[%emt 0:01:38]} Ne4 {[%emt 0:02:38]} 37. d6 {[%emt 0:00:33]} Rad8 {[%emt 0:00:57]} 38. Qxf6 {[%emt 0:04:57]} Rxf6 {[%emt 0:00:27]} 39. d7 {[%emt 0:00:09]} Nd6 {[%emt 0:00:31]} 40. Rc7 {[%emt 0:01:05]} e4 {[%emt 0:00:24]} 41. Rd1 {[%emt 0:01:45]} Nf5 {[%emt 0:05:29]} 42. Bc5 {[%emt 0:00:39]} exf3 {[%emt 0:00:31]} 43. Nc6 {[%emt 0:02:06]} fxg2+ {[%emt 0:00:36]} 44. Kxg2 {[%emt 0:01:01]} Nh4+ {[%emt 0:00:10]} 45. Kh1 {[%emt 0:00:44]} Rxd7 {[%emt 0:01:31]} 46. Rdxd7 {[%emt 0:00:16]} Rf1+ {[%emt 0:00:21]} 47. Bg1 {[%emt 0:00:04]} Nf5 {[%emt 0:00:27]} 48. Nd4 {[%emt 0:00:21]} 1-0

[Event "7th Iberoamerican-ch 2019"]
[Site "Linares"]
[Date "2019.08.13"]
[Round "4.15"]
[White "Cuenca Jimenez, Jose Fernando"]
[Black "Sos Andreu, Eric"]
[Result "1-0"]
[ECO "A05"]
[WhiteElo "2534"]
[BlackElo "2343"]
[Annotator "ChessBase"]
[PlyCount "105"]
[EventDate "2019.08.10"]
[EventType "swiss"]
[EventCountry "ESP"]
[SourceTitle "playchess.com"]
[Source "ChessBase"]
[SourceQuality "1"]
[TimeControl "5400+30"]

1. Nf3 {[%emt 0:00:00]} Nf6 {[%emt 0:00:00]} 2. c4 {[%emt 0:00:20]} g6 {[%emt 0:00:02]} 3. Nc3 {[%emt 0:00:16]} d5 {[%emt 0:00:20]} 4. cxd5 {[%emt 0:00:07]} Nxd5 {[%emt 0:00:05]} 5. Qb3 {[%emt 0:00:06]} Nb6 {[%emt 0:00:36]} 6. d4 {[%emt 0:00:09]} Bg7 {[%emt 0:02:04]} 7. Bf4 {[%emt 0:00:07]} Be6 {[%emt 0:00:17]} 8. Qa3 {[%emt 0:05:18]} Nc6 {[%emt 0:02:11]} 9. e3 {[%emt 0:01:18]} O-O {[%emt 0:02:48]} 10. Be2 {[%emt 0:00:21]} Bc4 {[%emt 0:13:49]} 11. Bxc4 {[%emt 0:09:57]} Nxc4 {[%emt 0:00:09]} 12. Qc5 {[%emt 0:01:17]} Nb6 {[%emt 0:10:50]} 13. O-O {[%emt 0:07:12]} e6 {[%emt 0:00:46]} 14. Rac1 {[%emt 0:09:49]} Re8 {[%emt 0:02:06]} 15. Rfd1 {[%emt 0:01:53]} Qe7 {[%emt 0:03:45]} 16. Ne4 {[%emt 0:07:20]} Nd5 {[%emt 0:06:06]} 17. Bg3 {[%emt 0:01:13]} Bf8 {[%emt 0:05:53]} 18. Qc2 {[%emt 0:13:53]} Rac8 {[%emt 0:09:22]} 19. a3 {[%emt 0:02:14]} Qd7 {[%emt 0:05:11]} 20. Qb3 {[%emt 0:03:49]} Na5 {[%emt 0:05:54]} 21. Qd3 {[%emt 0:01:10]} f5 {[%emt 0:02:35]} 22. Ned2 {[%emt 0:02:39]} Bd6 {[%emt 0:04:01]} 23. b4 {[%emt 0:02:18]} Nc6 {[%emt 0:00:27]} 24. Nc4 {[%emt 0:07:17]} Bxg3 {[%emt 0:06:00]} 25. hxg3 {[%emt 0:00:07]} Nf6 {[%emt 0:00:53]} 26. b5 {[%emt 0:02:35]} Ne7 {[%emt 0:00:33]} 27. Na5 {[%emt 0:01:55]} c6 {[%emt 0:04:58]} 28. bxc6 {[%emt 0:01:39]} Nxc6 {[%emt 0:00:11]} 29. Nxc6 {[%emt 0:00:10]} Rxc6 {[%emt 0:02:42]} 30. Ne5 {[%emt 0:00:43]} Rxc1 {[%emt 0:00:05]} 31. Nxd7 {[%emt 0:01:02]} Rxd1+ {[%emt 0:00:05]} 32. Qxd1 {[%emt 0:00:03]} Nxd7 {[%emt 0:00:12]} 33. Qa4 {[%emt 0:01:28]} Nf6 {[%emt 0:01:12]} 34. Qxa7 {[%emt 0:00:12]} Re7 {[%emt 0:00:08]} 35. f3 {[%emt 0:01:34]} Kf7 {[%emt 0:00:29]} 36. Qb8 {[%emt 0:02:39]} Rd7 {[%emt 0:01:14]} 37. Kf2 {[%emt 0:00:28]} Re7 {[%emt 0:01:03]} 38. a4 {[%emt 0:00:16]} Rd7 {[%emt 0:00:38]} 39. a5 {[%emt 0:00:04]} Re7 {[%emt 0:00:04]} 40. Ke2 {[%emt 0:00:33]} h5 {[%emt 0:01:31]} 41. Qc8 {[%emt 0:02:35]} Ne8 {[%emt 0:02:18]} 42. Kd3 {[%emt 0:01:01]} Rc7 {[%emt 0:00:45]} 43. Qd8 {[%emt 0:00:26]} Re7 {[%emt 0:00:32]} 44. e4 {[%emt 0:03:11]} fxe4+ {[%emt 0:00:22]} 45. fxe4 {[%emt 0:00:01]} Nf6 {[%emt 0:01:54]} 46. e5 {[%emt 0:01:09]} Ne8 {[%emt 0:02:50]} 47. Kc4 {[%emt 0:01:49]} Ng7 {[%emt 0:00:33]} 48. Kc5 {[%emt 0:00:26]} Ne8 {[%emt 0:02:15]} 49. Kb6 {[%emt 0:00:23]} Kf8 {[%emt 0:00:13]} 50. Qc8 {[%emt 0:01:36]} Kf7 {[%emt 0:01:05]} 51. Qxb7 {[%emt 0:00:26]} Rxb7+ {[%emt 0:00:06]} 52. Kxb7 {[%emt 0:00:03]} Ke7 {[%emt 0:00:03]} 53. Kc8 {[%emt 0:00:14]} 1-0

[Event "7th Iberoamerican-ch 2019"]
[Site "Linares"]
[Date "2019.08.13"]
[Round "4.16"]
[White "Matamoros Franco, Carlos S."]
[Black "Lianes Garcia, Marcos"]
[Result "1/2-1/2"]
[ECO "D45"]
[WhiteElo "2498"]
[BlackElo "2346"]
[Annotator "ChessBase"]
[PlyCount "37"]
[EventDate "2019.08.10"]
[EventType "swiss"]
[EventCountry "ESP"]
[SourceTitle "playchess.com"]
[Source "ChessBase"]
[SourceQuality "1"]
[TimeControl "5400+30"]

1. c4 {[%emt 0:00:00]} c6 {[%emt 0:00:00]} 2. Nf3 {[%emt 0:00:17]} d5 {[%emt 0:00:08]} 3. e3 {[%emt 0:00:19]} Nf6 {[%emt 0:00:45]} 4. Nc3 {[%emt 0:00:10]} e6 {[%emt 0:05:15]} 5. d4 {[%emt 0:02:37]} Nbd7 {[%emt 0:01:14]} 6. Bd2 {[%emt 0:00:20]} Bd6 {[%emt 0:00:48]} 7. Bd3 {[%emt 0:00:15]} O-O {[%emt 0:01:14]} 8. O-O {[%emt 0:00:07]} dxc4 {[%emt 0:11:31]} 9. Bxc4 {[%emt 0:00:14]} e5 {[%emt 0:00:11]} 10. Qc2 {[%emt 0:02:12]} exd4 {[%emt 0:16:16]} 11. exd4 {[%emt 0:00:11]} Nb6 {[%emt 0:00:37]} 12. Bb3 {[%emt 0:00:19]} Nfd5 {[%emt 0:22:39]} 13. Rae1 {[%emt 0:18:15]} Nxc3 {[%emt 0:10:23]} 14. bxc3 {[%emt 0:03:02]} Qf6 {[%emt 0:00:06]} 15. Qc1 {[%emt 0:35:49]} h6 {[%emt 0:07:47]} 16. c4 {[%emt 0:00:05]} Bg4 {[%emt 0:03:31]} 17. c5 {[%emt 0:08:57]} Bxf3 {[%emt 0:00:31]} 18. gxf3 {[%emt 0:01:51]} Qg6+ {[%emt 0:00:08]} 19. Kh1 {[%emt 0:01:30]} 1/2-1/2

[Event "7th Iberoamerican-ch 2019"]
[Site "Linares"]
[Date "2019.08.13"]
[Round "4.17"]
[White "Cruz Ravina, Francisco Javier"]
[Black "Espinosa Aranda, Angel"]
[Result "0-1"]
[ECO "B53"]
[WhiteElo "2363"]
[BlackElo "2488"]
[Annotator "ChessBase"]
[PlyCount "86"]
[EventDate "2019.08.10"]
[EventType "swiss"]
[EventCountry "ESP"]
[SourceTitle "playchess.com"]
[Source "ChessBase"]
[SourceQuality "1"]
[TimeControl "5400+30"]

1. e4 {[%emt 0:00:00]} c5 {[%emt 0:00:00]} 2. Nf3 {[%emt 0:00:17]} d6 {[%emt 0:00:09]} 3. d4 {[%emt 0:00:46]} cxd4 {[%emt 0:00:11]} 4. Qxd4 {[%emt 0:00:40]} Nf6 {[%emt 0:01:01]} 5. e5 {[%emt 0:02:30]} Nc6 {[%emt 0:01:13]} 6. Bb5 {[%emt 0:00:48]} Qa5+ {[%emt 0:00:18]} 7. Nc3 {[%emt 0:00:17]} Qxb5 {[%emt 0:00:04]} 8. Nxb5 {[%emt 0:00:15]} Nxd4 {[%emt 0:00:07]} 9. Nbxd4 {[%emt 0:00:30]} dxe5 {[%emt 0:00:07]} 10. Nxe5 {[%emt 0:00:08]} Nd5 {[%emt 0:00:02]} 11. c4 {[%emt 0:05:50]} Nc7 {[%emt 0:00:33]} 12. f4 {[%emt 0:05:41]} f6 {[%emt 0:00:14]} 13. Nef3 {[%emt 0:01:59]} e6 {[%emt 0:00:05]} 14. O-O {[%emt 0:06:47]} b6 {[%emt 0:00:43]} 15. Re1 {[%emt 0:02:40]} Kf7 {[%emt 0:01:44]} 16. Be3 {[%emt 0:11:52]} Bb7 {[%emt 0:00:22]} 17. Rad1 {[%emt 0:07:20]} Be7 {[%emt 0:01:31]} 18. Kf2 {[%emt 0:09:59]} Rhd8 {[%emt 0:04:49]} 19. b3 {[%emt 0:05:43]} Na6 {[%emt 0:11:12]} 20. Nb5 {[%emt 0:16:08]} Bb4 {[%emt 0:15:17]} 21. Rf1 {[%emt 0:02:15]} Nc5 {[%emt 0:01:36]} 22. Bxc5 {[%emt 0:03:10]} Bxc5+ {[%emt 0:01:43]} 23. Ke2 {[%emt 0:00:08]} Ke7 {[%emt 0:09:52]} 24. g3 {[%emt 0:05:07]} Be4 {[%emt 0:00:29]} 25. Nc3 {[%emt 0:01:25]} Bc2 {[%emt 0:01:07]} 26. Rd2 {[%emt 0:05:53]} Rxd2+ {[%emt 0:00:11]} 27. Nxd2 {[%emt 0:00:39]} Rd8 {[%emt 0:00:06]} 28. Rc1 {[%emt 0:02:19]} Bf5 {[%emt 0:02:08]} 29. Nde4 {[%emt 0:01:32]} Ba3 {[%emt 0:00:17]} 30. Rc2 {[%emt 0:00:40]} Bb4 {[%emt 0:01:08]} 31. Rc1 {[%emt 0:00:49]} Bg4+ {[%emt 0:02:49]} 32. Ke1 {[%emt 0:01:05]} a5 {[%emt 0:01:41]} 33. Nf2 {[%emt 0:00:36]} Bf3 {[%emt 0:00:09]} 34. Rc2 {[%emt 0:00:30]} h6 {[%emt 0:00:29]} 35. Kf1 {[%emt 0:00:18]} g5 {[%emt 0:00:07]} 36. fxg5 {[%emt 0:00:22]} hxg5 {[%emt 0:00:04]} 37. Nb1 {[%emt 0:00:31]} Bh5 {[%emt 0:04:08]} 38. a3 {[%emt 0:00:34]} Bg6 {[%emt 0:00:07]} 39. Rc1 {[%emt 0:00:34]} Bc5 {[%emt 0:00:13]} 40. Ke2 {[%emt 0:00:29]} f5 {[%emt 0:02:39]} 41. h3 {[%emt 0:00:21]} f4 {[%emt 0:00:31]} 42. gxf4 {[%emt 0:00:24]} gxf4 {[%emt 0:00:04]} 43. Rg1 {[%emt 0:01:01]} f3+ {[%emt 0:00:33]} 0-1